Cogmind - Beta 16 @@@ ROGUE MODE // 2025.11.05 @ 20:37:04 Player: Velocity Result: Destroyed by G-34 Mercenary with Small Laser Performance ------------- Evolutions (0) 0 Regions Visited (4) 800 Robots Destroyed (24) 120 Value Destroyed (458) 458 Prototype IDs (25) 500 Alien Tech Used (0) 0 Bonus (300) 300 TOTAL SCORE: 2178 Bonus ------- Aligned with FarCom 300 Cogmind --------- Core Integrity 0/250 Matter 285/300 Energy 100/100 System Corruption 0% Temperature Cool (12) Movement Walking (190) Ox1 Location -9/Mines Parts ------- > --- POWER (1) -------- (None) > --- PROPULSION (2) --- Aluminum Leg Aluminum Leg > --- UTILITY (2) ------ Large Storage Unit Experimental Sensor Array > --- WEAPON (2) ------- Light Assault Rifle > --- INVENTORY (15) --- Light Ion Engine Aluminum Leg Flight Unit Flight Unit Flight Unit Heat Sink Improved Heat Sink Small Storage Unit Sensor Array Sensor Array Mining Claw Peak State ------------ > --- POWER ------------ (None) > --- PROPULSION ------- Aluminum Leg Aluminum Leg > --- UTILITY ---------- Decoy Drone Bay > --- WEAPON ----------- Light Assault Rifle Light Assault Rifle > --- INVENTORY -------- Light Ion Engine Improved Heat Sink Sensor Array Sensor Array Mining Claw [Rating: 18] Favorites ----------- Power Light Ion Engine Engine Light Ion Engine Propulsion Aluminum Leg Leg Aluminum Leg Flight Unit Flight Unit Utility Small Storage Unit Device Seismic Detector Storage Small Storage Unit Weapon Light Assault Rifle Ballistic Gun Light Assault Rifle Build | -11 -10 -10 -10 -9 ------- Run | Yrd Mat Min Exi Min Slots Evolved . | . . . . . Power . | . . . . . Propulsion . | . . . . . Utility . | . . . . . Weapon . | . . . . . Parts Attached 26 | 7 2 10 3 4 Power 3 | 1 . 2 . . Engine 3 | 1 . 2 . . Core . | . . . . . Reactor . | . . . . . Propulsion 10 | 2 2 5 . 1 Treads . | . . . . . Leg 9 | 2 2 4 . 1 Wheel . | . . . . . Hover . | . . . . . Flight 1 | . . 1 . . Utility 8 | 2 . . 3 3 Device 5 | 1 . . 1 3 Storage 3 | 1 . . 2 . Processor . | . . . . . Hackware . | . . . . . Protection . | . . . . . Artifact . | . . . . . Weapon 5 | 2 . 3 . . Energy Gun . | . . . . . Energy Cannon . | . . . . . Ballistic Gun 5 | 2 . 3 . . Ballistic Cannon . | . . . . . Launcher . | . . . . . Special Weapon . | . . . . . Impact Weapon . | . . . . . Slashing Weapon . | . . . . . Piercing Weapon . | . . . . . Special Melee Weapon . | . . . . . Unidentified Prototypes 3 | . . . 1 2 Parts Lost 10 | . . 8 . 2 Power 3 | . . 2 . 1 Propulsion 2 | . . 2 . . Utility 1 | . . 1 . . Weapon 4 | . . 3 . 1 Highest Loss Streak 4 | . . 4 . 1 To Critical Strikes . | . . . . . Average Backups 7 | . 3 7 8 9 Power . | . 1 1 1 1 Propulsion 2 | . 1 3 3 3 Utility 2 | . . 2 3 4 Weapon . | . . 1 1 1 Tool/Special . | . . . . . Unused Backups 10 | . 1 1 . 8 Power 2 | . 1 . . 1 Propulsion 3 | . . 1 . 2 Utility 4 | . . . . 4 Weapon 1 | . . . . 1 Tool/Special . | . . . . . Average Slot Usage (%) 87 | . 100 81 88 85 Engine 10 | . 14 11 14 4 Leg 26 | . 28 21 28 28 Device 6 | . 14 10 1 . Storage 17 | . 14 14 16 22 Ballistic Gun 26 | . 28 22 28 27 Peak Build Rating 18 | 7 7 7 14 18 Average Rating 6 | 5 6 5 6 7 On Entrance 5 | . 7 7 6 7 Avg Prop Armor Cover (%) . | . . . . . Naked Turns . | . . . . . Heaviest Build 30 | 11 11 11 30 30 Greatest Support 26 | 20 20 20 20 26 Greatest Overweight (x) 2 | . 1 2 1 1 Average Overweight (x) . | . . . . . Largest Inventory Capacity 15 | 8 8 8 15 15 Average Capacity 10 | 7 8 8 9 14 Most Carried 11 | 1 8 8 8 11 Average Carried 7 | . 4 7 8 9 Final Capacity 15 | 8 8 8 15 15 Final Carried 11 | 1 8 8 8 11 Class Distribution -------------------- 63% | Scavenger-Mutant 36% | Mutant Dominant Class ---------------- Mutant | -10/Materials Scavenger-Mutant | -10/Mines Scavenger-Mutant | -10/Exiles Scavenger-Mutant | -9/Mines Resources | -11 -10 -10 -10 -9 ----------- Run | Yrd Mat Min Exi Min Matter Collected 582 | 261 77 143 6 95 Remotely . | . . . . . Salvage Created 704 | 16 267 285 6 130 Parts 52 | 5 20 18 . 9 Haulers Intercepted 2 | . 2 . . . Recyclers Shooed . | . . . . . Parts Field Recycled . | . . . . . Retrieved Matter . | . . . . . Parts Self-Destructed . | . . . . . Prevented . | . . . . . Parts Restored . | . . . . . Kills | -11 -10 -10 -10 -9 ------- Run | Yrd Mat Min Exi Min Combat Hostiles Destroyed 20 | . 5 10 . 5 Guns 20 | . 5 10 . 5 Classes Destroyed 6 | 1 4 . 1 . Tunneler 1 | 1 . . . . Hauler 2 | . 2 . . . Drone 1 | . . . 1 . Watcher 1 | . 1 . . . Swarmer 12 | . 3 6 . 3 Grunt 8 | . 2 4 . 2 Best Kill Streak 7 | 1 3 7 . 3 Combat Bots Only 7 | . 3 7 . 3 Max Kills in Single Turn 1 | 1 1 1 1 1 Gunslinging . | . . . . . Exploded . | . . . . . Melee . | . . . . . Uniques/NPCs Destroyed . | . . . . . Combat | -11 -10 -10 -10 -9 -------- Run | Yrd Mat Min Exi Min Hostile Shots Fired 151 | . 21 77 . 53 Missed 25 | . 4 11 . 10 Hits 126 | . 17 66 . 43 Projectile 126 | . 17 66 . 43 Critical Strikes 1 | . . . . 1 Damage Taken 1305 | . 141 704 . 460 Core 250 | . 18 112 . 120 Absorbed by Shields . | . . . . . Core Remaining (%) 100 | 100 . . . . Volleys Fired 91 | 2 22 48 3 16 Largest 2 | 2 2 2 2 2 Hottest 40 | 40 40 40 40 40 Shots Fired 149 | 4 44 63 6 32 Gun 149 | 4 44 63 6 32 Cannon . | . . . . . Launcher . | . . . . . Special . | . . . . . Kinetic 149 | 4 44 63 6 32 Thermal . | . . . . . Explosive . | . . . . . Electromagnetic . | . . . . . Robot Hit Streak 15 | 2 8 15 3 9 Robot Miss Streak 4 | 1 2 3 2 4 Penetration Max . | . . . . . Secondary Targets 3 | . 1 . . 2 Max Gunslinging Chain 1 | . 1 . . 1 Shots Hit Robots 100 | 2 27 46 3 22 Core Hits 52 | 2 15 23 1 11 Critical Kills 1 | . . 1 . . Critical Parts Destroyed 1 | . . 1 . . Critical Strikes 2 | . . 2 . . Destroy 2 | . . 2 . . Melee Attacks . | . . . . . Impact . | . . . . . Slashing . | . . . . . Piercing . | . . . . . Sneak Attacks . | . . . . . Combat Hostiles . | . . . . . Follow-up Attacks . | . . . . . Damage Inflicted 811 | 19 219 375 23 175 Guns 810 | 19 219 375 23 174 Cannons . | . . . . . Explosions . | . . . . . Melee . | . . . . . Ramming 1 | . . . . 1 Kinetic 810 | 19 219 375 23 174 Thermal . | . . . . . Explosive . | . . . . . Electromagnetic . | . . . . . Impact . | . . . . . Slashing . | . . . . . Piercing . | . . . . . Highest Corruption . | . . . . . Average Corruption . | . . . . . Corruption Purged . | . . . . . Corruption Blocked . | . . . . . Overload Shots . | . . . . . Overflow Damage . | . . . . . Projectiles . | . . . . . Explosions . | . . . . . Melee . | . . . . . Knockbacks . | . . . . . Impact . | . . . . . Kinetic . | . . . . . Secondary . | . . . . . Self-Inflicted Damage . | . . . . . Shots . | . . . . . Rammed . | . . . . . Targets Rammed 1 | . . . . 1 Kicked 1 | . . . . 1 Crushed . | . . . . . Highest Temperature 30 | . 6 30 . 30 Average Temperature 11 | . 6 9 . 13 Received Heat Transfer 468 | . 24 258 . 186 Siege Activations . | . . . . . Martial Activations . | . . . . . Shielding Activations . | . . . . . Robots Disrupted . | . . . . . Combat Hostiles . | . . . . . Robots Corrupted . | . . . . . Combat Hostiles . | . . . . . Parts Fried . | . . . . . Impact Corruptions . | . . . . . Robots Melted . | . . . . . Combat Hostiles . | . . . . . Parts Melted . | . . . . . Heat Transferred . | . . . . . Parts Sabotaged . | . . . . . Parts Stolen . | . . . . . Parts Stripped . | . . . . . Power Chain Reactions . | . . . . . Alert | -11 -10 -10 -10 -9 ------- Run | Yrd Mat Min Exi Min Maximum Alert Level . | . . . . . Low Security (%) 100 | 100 100 100 . 100 Level 1 . | . . . . . Level 2 . | . . . . . Level 3 . | . . . . . Level 4 . | . . . . . Level 5 . | . . . . . High Security . | . . . . . Max Security . | . . . . . Peak Influence 100 | 5 92 100 . 75 Initial 9 | . . 9 . . Average 23 | . 39 29 . 12 Influence Increases 531 | 5 136 255 . 135 Destroy 0b10 Robot/C 400 | . 100 200 . 100 Destroy 0b10 Robot/NC 20 | 5 15 . . . Destroy Leader 76 | . 16 40 . 20 Successful Hack 5 | . 5 . . . Lose Combat Pursuer 30 | . . 15 . 15 Influence Decreases 531 | 5 110 276 5 135 Entered New Map 22 | . . 17 5 . Time Decay 435 | 5 110 195 . 125 Lost Part 74 | . . 64 . 10 Squads Dispatched . | . . . . . Investigation . | . . . . . Extermination . | . . . . . Reinforcement . | . . . . . Assault . | . . . . . Garrison . | . . . . . Intercept . | . . . . . Searches Triggered . | . . . . . Construction Impeded . | . . . . . Haulers Reinforced . | . . . . . Active Scanning Responses . | . . . . . Cargo Convoy Interrupts . | . . . . . Stealth | -11 -10 -10 -10 -9 --------- Run | Yrd Mat Min Exi Min Distress Signals . | . . . . . Communications Jammed . | . . . . . Distress Signals . | . . . . . Times Spotted 27 | . 7 11 . 9 Peak Tracking Total 4 | . 3 4 . 3 Tactical Retreats 2 | . . 1 . 1 Traps | -11 -10 -10 -10 -9 ------- Run | Yrd Mat Min Exi Min Traps Triggered . | . . . . . Indirectly . | . . . . . Trap Hack Attempts . | . . . . . Triggered . | . . . . . Disarmed . | . . . . . Reprogrammed . | . . . . . Reused . | . . . . . Traps Extracted . | . . . . . Installed 1 | . . 1 . . Triggered . | . . . . . Machines | -11 -10 -10 -10 -9 ---------- Run | Yrd Mat Min Exi Min Machines Disabled . | . . . . . Max in Single Turn . | . . . . . Machines Repaired . | . . . . . Machines Dismantled . | . . . . . Machines Sabotaged . | . . . . . Overloaded Fab Kills . | . . . . . Hacking | -11 -10 -10 -10 -9 --------- Run | Yrd Mat Min Exi Min Machines Accessed 3 | . 1 . 1 1 Terminals 1 | . 1 . . . Fabricators . | . . . . . Repair Stations . | . . . . . Recycling Units . | . . . . . Scanalyzers . | . . . . . Garrison Access . | . . . . . Total Hacks 3 | . 1 . 1 1 Successful 3 | . 1 . 1 1 Failed . | . . . . . Catastrophic . | . . . . . Database Lockouts . | . . . . . Manual 1 | . . . 1 . Terminals 1 | . 1 . . . Fabricators . | . . . . . Repair Stations . | . . . . . Recycling Units . | . . . . . Scanalyzers . | . . . . . Garrison Access . | . . . . . Terminal Hacks 3 | . 1 . 1 1 Open Door 1 | . . . . 1 Hauler Manifests 1 | . 1 . . . Proto ID Catalog 1 | . . . 1 . Fabricator Hacks . | . . . . . Repair Station Hacks . | . . . . . Recycling Unit Hacks . | . . . . . Scanalyzer . | . . . . . Garrison Access Hacks . | . . . . . Unauthorized Hacks . | . . . . . Terminals . | . . . . . Fabricators . | . . . . . Repair Stations . | . . . . . Recycling Units . | . . . . . Scanalyzers . | . . . . . Garrison Access . | . . . . . Data Cores Recovered . | . . . . . Used . | . . . . . Hacking Detections 1 | . 1 . . . Full Trace Events . | . . . . . Feedback Events . | . . . . . Feedback Blocked . | . . . . . Robot Schematics Acquired . | . . . . . Robots Built . | . . . . . Authchips . | . . . . . Time . | . . . . . Total Robot Build Rating . | . . . . . Part Schematics Acquired . | . . . . . Parts Built . | . . . . . Authchips . | . . . . . Time . | . . . . . Total Part Build Rating . | . . . . . Part Studies Acquired . | . . . . . Parts Repaired . | . . . . . Time . | . . . . . Parts Recycled . | . . . . . Recycled Matter . | . . . . . Retrieved Matter . | . . . . . Retrieved Components . | . . . . . Parts Scanalyzed . | . . . . . Part Schematics Acquired . | . . . . . Parts Damaged . | . . . . . Bothacking | -11 -10 -10 -10 -9 ------------ Run | Yrd Mat Min Exi Min Used RIF Installer . | . . . . . Robots Hacked . | . . . . . Non-combat . | . . . . . Combat . | . . . . . Robot Hacks Applied . | . . . . . Relay Couplers Released . | . . . . . Fabnet Peak Effective % . | . . . . . Robots Rewired . | . . . . . Allies Hacked . | . . . . . Hacks Repelled . | . . . . . Allies | -11 -10 -10 -10 -9 -------- Run | Yrd Mat Min Exi Min Total Allies . | . . . . . Largest Group . | . . . . . Highest-Rated Group . | . . . . . Highest-Rated Ally . | . . . . . Total Orders . | . . . . . Ally Attacks . | . . . . . Total Damage . | . . . . . Kills . | . . . . . Allies Corrupted . | . . . . . Allies Melted . | . . . . . Intel | -11 -10 -10 -10 -9 ------- Run | Yrd Mat Min Exi Min Active Infowar (turns) 796 | 22 333 415 . 26 Sensors 26 | . . . . 26 Seismic 770 | 22 333 415 . . Robot Analysis Total . | . . . . . Derelict Logs Recovered 1 | . . 1 . . Drone Launches 1 | . . . 1 . Drone Recoveries . | . . . . . Exploration | -11 -10 -10 -10 -9 ------------- Run | Yrd Mat Min Exi Min Turns Passed 1954 | 82 333 546 411 582 Spaces Moved 1191 | 59 215 355 312 250 Core 30 | 7 . 23 . . Treads . | . . . . . Legs 1161 | 52 215 332 312 250 Wheels . | . . . . . Hover . | . . . . . Flight . | . . . . . Fastest Speed 50 | 50 120 100 120 120 Average Speed 135 | 111 120 119 127 186 Slowest Speed 190 | 120 190 150 190 190 Overloaded Moves . | . . . . . Propulsion Burnouts . | . . . . . Robots Hopped . | . . . . . Potential Cave-ins . | . . . . . Cave-ins Triggered . | . . . . . Exploration Rate (%) 41 | 4 29 61 64 47 Regions Visited 4 Branch Regions 3 Pre-discovered Areas . | . . . . . Known Exits Taken . | . . . . . Unknown Exits Taken 4 | 1 1 1 1 . Scrap Searched 1 | . . . . 1 Spaces Dug . | . . . . . Terrain Destroyed . | . . . . . Melee . | . . . . . Projectile . | . . . . . AOE . | . . . . . Terrain Rammed . | . . . . . Walls Destroyed . | . . . . . Machines Disabled . | . . . . . Actions | -11 -10 -10 -10 -9 --------- Run | Yrd Mat Min Exi Min Total 1411 | 69 254 425 321 342 Wait 60 | . 5 1 . 54 Move 1187 | 58 214 354 311 250 Hop . | . . . . . Pick Up 20 | 2 8 3 . 7 Fast Attach 24 | 6 2 8 4 4 Attach 1 | 1 . . . . Detach 1 | . . 1 . . Swap 4 | . . 3 . 1 Drop 21 | . 3 6 3 9 Fire 91 | 2 22 48 3 16 Melee . | . . . . . Ram . | . . . . . Kick 1 | . . . . 1 Crush . | . . . . . Escape Stasis . | . . . . . Rewire . | . . . . . Trap 1 | . . 1 . . Miscellaneous . | . . . . . Route ------- -11/Scrapyard -10/Materials -10/Mines (discovered 3 exits: [*Mat] / *Exi / Sub) -10/Exiles (discovered 2 exits: *Min x2) -9/Mines History --------- Turn | Location | Event 33 | -11/Scrapyard | Discovered new exit (range 13) 83 | -11/Scrapyard | Entered Materials 229 | -10/Materials | Discovered new exit (range 15) 316 | -10/Materials | Build established: Mutant 416 | -10/Materials | Entered Mines 434 | -10/Mines | Identified exit to Subcaves 505 | -10/Mines | Discovered new exit (range 10) 612 | -10/Mines | Found a hidden stash of uninstalled traps 708 | -10/Mines | Destroyed 7 combat bots 708 | -10/Mines | Lost 4 parts (1p1n2w) 875 | -10/Mines | Core integrity fell below 50% 880 | -10/Mines | Lost 4 parts (1p1n1u1w) 956 | -10/Mines | Deemed a non-threat by the Exiles lab entrance 957 | -10/Mines | Discovered new exit (range 5) 962 | -10/Mines | Entered Exiles 982 | -10/Exiles | Discovered new exit (range 14) 1002 | -10/Exiles | Met 8R-AWN 1024 | -10/Exiles | Met EX-HEX 1058 | -10/Exiles | Met EX-BIN 1075 | -10/Exiles | Aligned with FarCom system 1076 | -10/Exiles | Given EX-Vault access code 1105 | -10/Exiles | Opened EX-Vault 1111 | -10/Exiles | Found Prototype Device 1111 | -10/Exiles | Identified Supersonic Drone Bay 1166 | -10/Exiles | Build established: Scavenger-Mutant 1167 | -10/Exiles | Warned to stay clear of 0b10 Research branches 1202 | -10/Exiles | Met EX-DEC 1346 | -10/Exiles | Discovered new exit (range 14) 1373 | -10/Exiles | Entered Mines 1569 | -9/Mines | Core integrity fell below 20% 1733 | -9/Mines | Found the Drone Emporium 1745 | -9/Mines | Found Prototype Device 1745 | -9/Mines | Identified Decoy Drone Bay 1925 | -9/Mines | Found a damaged Exp. Sensor Array with a note attached 1929 | -9/Mines | Found Prototype Device 1929 | -9/Mines | Identified Exp. Sensor Array 1955 | -9/Mines | Destroyed by G-34 Mercenary with Small Laser Last Messages --------------- 01774_ R-06 Scavenger collects Decoy Drone Bay. 01820_ Kicked R-06 Scavenger out of the way. 01829_ K-01 Serf collects debris. 01839_ Acquired 18 matter. 01842_ K-01 Serf collects debris. 01862_ Acquired Weight Redist. System. 01875_ Dropped Weight Redist. System. 01925_ A damaged part is partially visible under some rubble. There's a note attached: "Everyone keeps telling us we should avoid high-traffic areas because that's where patrols are more likely to show up, but that doesn't do us much good if we can't spot those areas until they're on top of us... With this we can! Deliver it to Megawrench for repairs then we'll never be afraid of an ambush while sneaking around Materials again, ha." 01929_ Lgt. Assault Rifle destroyed. 01929_ Acquired Prototype Device. 01929_ Identified Exp. Sensor Array. Map ----- +----------------------------------------------------+ | #?????????????????????????????????????????????? | | //##?????????????????????????????????????????????? | | ##????????????????????????????????????????????? | | # %#????????????????????????????????????????????? | | # #????????????????????????????????????????????? | | ##???????????????????????????????????????????? | | ##??????????????????????????????????????????? | | ##?????????????????# ??????????????????????? | | #????????????????# ?????????????????????? | | #???????????????# ?????????????????????? | | ### ##?????????????## ?????????????????????? | | #?#####??????????????? ??????????????????????? | | ?????????????????????? ??????????????????????? | | ?????????????????????? ??????????????????????? | | ?????????????????????? ???????????????????????? | | ??????????????????????# #???????????????????????? | | ?????????????????????## #???????????????????????? | | ????????????????????## #???????????????????????? | | ????????????????????# #???????????????????????? | | ???????????????????## #???????????????????????? | | ???????????????????# ##??????????????????????? | | ???????????######### ##?????????????????????? | | ???????????# #?????????????????????? | | ???????????# #?????????????????????? | | ?????????### #### b #?????????????????????? | | ??????#### #??# g u@ #?????????????????????? | | ?????## #### ##?????????????????????? | | ?????# g #??????????????????????? | | ?????# ? #?????????????????????? | | #???## ##### ??????????????????? | | #### ##???# ????????????????? | | ##????## ?????????????????? | | ##??????## ????????????????? | | #????????### ?????????????????? | | # ## #??????????## ##?????????????????? | | # #### ##???????????## ##??????????????????? | | #??####?????????????## ###???????????????????? | | #????????????????????? ##?????????????????????? | | #????????????????????? #??????????????????????? | | #????????????????????? ???????????????????????? | | ##??######????????????#???????????????????????? | | ####""""##???????????????????????????????????? | | ##" "#???????????????????????????????????? | | ##" "#??##???????????????????????????????? | | ### ##?# ##??????????????????????????????? | | ### #### #??????????????????????????????? | | # # X #??????????????????????????????? | | # ## ##??????????????????????????????? | | # #### ##???????????????????????????????? | | #! #??# #????????????????????????????????? | +----------------------------------------------------+ Best States ------------- Heat Dissipation 25 Energy Generation 10 Energy Capacity 125 Matter Stores 300 Matter Capacity 300 Sight Range 16 Robot Scan Range 20 Terrain Scan Density 10 Additional Mass Support 6 Evasion (%) 55 Item Schematics ----------------- None Robot Schematics ------------------ None Fabricated ------------ Nothing Repaired ---------- Nothing Studied --------- None Alien Tech Used ----------------- None Achievements -------------- None Challenges ------------ None Game ------ Seed HoverTerrabombAirjet Manual? 0 Play Time 00:17:34 Cumulative 22.7 hours Start 2025.11.05 @ 20:09:19 End 2025.11.05 @ 20:37:04 Sessions 1 Manual Loads 0 Difficulty Rogue Special Mode None Game No. 8 Rogue 2 Adventurer 5 Explorer 1 Win Type - Total 1 Types 1/0/0/0/0/0/0/0/0/0 Lore% 12 Gallery% 27 Achievement% 19 Wizard Run 0 Options --------- Layout 1 ASCII 0 Keyboard 0 Movement Mouse Keybinds 0 Fullscreen 1 Font 24/Crisp Map View 50x35 Zoom Use 0% Tactical HUD 1 Map Filters NONE Filters NONE Steam 1 RUN: 572267f4-eaeb-4dd8-a6af-85ce6e49a62b